bitfinex-derivatives/quotes_BTCF0:USTF0_20250405
["timestamp","ask_amount","ask_price","bid_price","bid_amount"]
[1743887279521,0.1680064,83064.0,83063.0,0.61196]
[1743887279923,0.1680064,83064.0,83063.0,0.25116]
[1743887280121,0.1680064,83064.0,83063.0,0.00116]
[1743887281228,0.3680064,83064.0,83063.0,0.00116]
[1743887281418,0.0843054,83063.0,83062.0,8e-05]
[1743887281621,0.1270054,83063.0,83062.0,0.00124]
[1743887281821,0.2149054,83063.0,83062.0,0.00124]
[1743887282724,0.4149054,83063.0,83062.0,0.00124]
[1743887284835,0.4149054,83063.0,83062.0,0.01124]
[1743887287232,0.0843104,83058.0,83056.0,0.21577203]
[1743887287433,0.1676114,83057.0,83056.0,0.21577203]
[1743887287734,0.1676114,83057.0,83049.0,0.28779686]
[1743887287735,0.0843186,83050.0,83049.0,0.28779686]
[1743887288035,0.4451186,83050.0,83049.0,0.28779686]
[1743887288341,0.5715186,83050.0,83049.0,0.28779686]
[1743887288527,0.7715186,83050.0,83049.0,0.28779686]
[1743887288943,0.7715186,83050.0,83049.0,0.00018065]
[1743887290138,0.7721586,83050.0,83049.0,0.00018065]
[1743887290942,0.7721586,83050.0,83049.0,0.00118065]
[1743887293235,0.0843236,83045.0,83044.0,0.00891149]
[1743887293444,0.0850036,83045.0,83044.0,9e-08]
[1743887293636,0.1716036,83045.0,83044.0,9e-08]
[1743887294329,0.3716036,83045.0,83044.0,9e-08]
[1743887295048,0.38402742,83045.0,83044.0,9e-08]
[1743887296050,0.38502742,83045.0,83044.0,9e-08]
[1743887296452,0.0843277,83041.0,83040.0,9e-08]
[1743887296645,0.4457677,83041.0,83040.0,9e-08]
[1743887296849,0.5306677,83041.0,83040.0,9e-08]
[1743887297746,0.5316677,83041.0,83040.0,9e-08]
[1743887298047,0.7316677,83041.0,83040.0,9e-08]
[1743887301747,0.7762677,83041.0,83040.0,9e-08]
[1743887311159,0.6878677,83041.0,83040.0,9e-08]
[1743887311460,0.6878677,83041.0,83040.0,0.01000009]
[1743887312750,0.79580308,83041.0,83040.0,0.01000009]
[1743887313547,0.87850308,83041.0,83040.0,9e-08]
[1743887317061,0.7705677,83041.0,83040.0,9e-08]
[1743887325262,0.0843307,83038.0,83037.0,0.0848]
[1743887325464,0.0850107,83038.0,83037.0,0.0848]
[1743887325658,0.1273107,83038.0,83037.0,0.0848]
[1743887326555,0.3273107,83038.0,83037.0,0.0848]
[1743887328864,0.3283107,83038.0,83037.0,0.0848]
[1743887341276,0.6891107,83038.0,83037.0,0.0848]
[1743887343196,0.6468107,83038.0,83037.0,0.1048]
[1743887344188,0.2860107,83038.0,83037.0,0.1048]
[1743887345189,0.2850107,83038.0,83037.0,0.1048]
[1743887345389,0.3292107,83038.0,83037.0,0.1048]
[1743887346296,0.3292107,83038.0,83037.0,0.02]
[1743887346493,0.0843318,83037.0,83036.0,0.00012069]
[1743887346698,0.0850518,83037.0,83036.0,0.00012069]
[1743887346898,0.1751518,83037.0,83036.0,0.00012069]
[1743887347396,0.3751518,83037.0,83036.0,0.00092069]
[1743887347598,0.3761518,83037.0,83036.0,0.08722069]
[1743887348299,0.7369518,83037.0,83036.0,0.08722069]
[1743887348603,0.6921518,83037.0,83036.0,0.08722069]
[1743887351205,0.6921518,83037.0,83036.0,0.08642069]
[1743887353006,0.7335518,83037.0,83036.0,0.08642069]
[1743887354406,0.3727518,83037.0,83036.0,0.08642069]
[1743887354612,0.7335518,83037.0,83036.0,0.08642069]
[1743887356306,0.3727518,83037.0,83036.0,0.08642069]
[1743887356611,0.7335518,83037.0,83036.0,0.08642069]
[1743887358000,0.3727518,83037.0,83036.0,0.08642069]
[1743887358206,0.7335518,83037.0,83036.0,0.08642069]
[1743887363404,0.6921518,83037.0,83036.0,0.34642069]
[1743887363606,0.3313518,83037.0,83036.0,0.34722069]
[1743887373121,0.3303518,83037.0,83036.0,0.34722069]
[1743887373327,0.3313518,83037.0,83036.0,0.34722069]
[1743887373912,0.3303518,83037.0,83036.0,0.34722069]
[1743887374116,0.3313518,83037.0,83036.0,0.34722069]
[1743887375117,0.2860518,83037.0,83036.0,0.34722069]
[1743887375426,0.20172,83037.0,83036.0,0.79235349]
[1743887375724,0.0843269,83042.0,83041.0,0.0843267]
[1743887375916,0.0843269,83042.0,83041.0,0.3453667]
[1743887376117,0.0843269,83042.0,83041.0,0.26104]
[1743887377025,0.0853269,83042.0,83041.0,0.26104]
[1743887378535,0.19368319,83042.0,83041.0,0.26104]
[1743887380931,0.23758319,83042.0,83041.0,0.26104]
[1743887383124,0.1292269,83042.0,83041.0,0.26104]
[1743887383331,0.0853269,83042.0,83041.0,0.26104]
[1743887386328,0.1278269,83042.0,83041.0,0.26104]
[1743887390831,0.1278269,83042.0,83041.0,0.34634]
[1743887400041,0.1705269,83042.0,83041.0,0.34634]
[1743887409048,0.1705269,83042.0,83041.0,0.70714]
[1743887415749,0.1705269,83042.0,83041.0,0.34634]
[1743887415953,0.1705269,83042.0,83041.0,0.70714]
[1743887427161,0.1705269,83042.0,83041.0,0.7914677]
[1743887427561,0.1705269,83042.0,83041.0,0.70714]
[1743887440175,0.1705269,83042.0,83041.0,0.99502406]
[1743887461498,0.0435,83042.0,83041.0,0.99502406]
[1743887461796,0.01231069,83061.0,83051.0,0.0421582]
[1743887462002,0.0843206,83052.0,83051.0,0.386474]
[1743887462190,0.0843206,83052.0,83051.0,0.26104]
[1743887462497,0.1280206,83052.0,83051.0,0.26104]
[1743887462697,0.1704206,83052.0,83051.0,0.26104]
[1743887464893,0.3704206,83052.0,83051.0,0.26104]
[1743887470207,0.3280206,83052.0,83051.0,0.26104]
[1743887470602,0.3693206,83052.0,83051.0,0.26104]
[1743887471410,0.1693206,83052.0,83051.0,0.26104]
[1743887482414,0.1693206,83052.0,83051.0,0.30314]
[1743887484321,0.1693206,83052.0,83051.0,0.34874]
[1743887488119,0.1693206,83052.0,83051.0,0.26104]
[1743887489119,0.3693206,83052.0,83051.0,0.26104]
[1743887490518,0.3693206,83052.0,83051.0,0.30344]
[1743887490724,0.3280206,83052.0,83051.0,0.30344]
[1743887490921,0.3280206,83052.0,83051.0,0.34904]
[1743887491424,0.1280206,83052.0,83051.0,0.34904]
[1743887497827,0.1280206,83052.0,83051.0,0.56550172]
[1743887519039,0.1722206,83052.0,83051.0,0.56550172]
[1743887521654,0.1722206,83052.0,83051.0,0.34904]
[1743887522558,0.1280206,83052.0,83051.0,0.30344]
[1743887522853,0.0421551,83059.0,83058.0,0.0843104]
[1743887523043,0.0421551,83059.0,83058.0,0.3453504]
[1743887523239,0.0421551,83059.0,83058.0,0.4322504]
[1743887524661,0.26504475,83060.0,83059.0,0.0843094]
[1743887524863,0.26504475,83060.0,83059.0,0.4572294]
[1743887525658,0.08448905,83060.0,83059.0,0.4572294]
[1743887527771,0.07021282,83068.0,83067.0,0.0842993]
[1743887527957,0.07021282,83068.0,83067.0,0.8628193]
[1743887528357,0.21596701,83077.0,83069.0,0.0842993]
[1743887528566,0.0421477,83073.0,83069.0,0.3453393]
[1743887528762,0.21596701,83077.0,83076.0,0.0842922]
[1743887528960,0.21596701,83077.0,83076.0,0.7161322]
[1743887529163,0.21596701,83077.0,83076.0,0.8028322]
[1743887529478,0.30025821,83077.0,83076.0,0.8028322]
[1743887530378,0.0842797,83089.0,83085.0,0.0421415]
[1743887530575,0.0842797,83089.0,83088.0,0.445078]
[1743887530767,0.0842797,83089.0,83088.0,0.696118]
[1743887530967,0.0842797,83089.0,83088.0,0.784618]
[1743887531176,0.0846763,83092.0,83091.0,0.0842769]
[1743887531372,0.0846763,83092.0,83091.0,0.3353169]
[1743887531881,0.0846763,83092.0,83091.0,0.34432711]
[1743887532479,0.0846763,83092.0,83091.0,0.26005021]
[1743887532781,0.1699763,83092.0,83091.0,0.01005021]
[1743887533770,0.3699763,83092.0,83091.0,0.01005021]
[1743887539179,0.3699763,83092.0,83091.0,0.00901021]
[1743887539380,0.0842769,83091.0,83090.0,8e-05]
[1743887539889,0.1718769,83091.0,83090.0,8e-05]
[1743887540079,0.1725169,83091.0,83090.0,8e-05]
[1743887540386,0.0842901,83078.0,83077.0,8e-05]
[1743887540683,0.0843003,83068.0,83062.0,0.90122593]
[1743887540884,0.0843003,83068.0,83067.0,0.22535741]
[1743887541086,0.17294031,83068.0,83067.0,0.22535741]
[1743887542081,0.37294031,83068.0,83067.0,0.22535741]
[1743887544188,0.37294031,83068.0,83067.0,0.01005796]
[1743887544383,0.37294031,83068.0,83067.0,0.00893796]
[1743887544581,0.0843033,83065.0,83064.0,8e-05]
[1743887544781,0.0849433,83065.0,83064.0,0.03008]
[1743887544985,0.1703433,83065.0,83064.0,0.03008]
[1743887545689,0.1703433,83065.0,83064.0,0.03893398]
[1743887545889,0.3703433,83065.0,83064.0,0.03893398]
[1743887546392,0.2849433,83065.0,83064.0,0.03893398]
[1743887546585,0.3296433,83065.0,83064.0,0.12741398]
[1743887547087,0.3296433,83065.0,83064.0,0.48821398]
[1743887547689,0.1296433,83065.0,83064.0,0.48821398]
[1743887548376,0.1296433,83065.0,83064.0,0.12741398]
[1743887550494,0.04534,83065.0,83064.0,0.21171828]
[1743887550993,0.04232693,83076.0,83064.0,0.21171828]
[1743887550994,0.00018053,83076.0,83074.0,0.0421471]
[1743887551188,0.00018053,83076.0,83074.0,0.0532671]
[1743887551189,0.0412,83075.0,83074.0,0.0532671]
[1743887551392,0.00018053,83076.0,83075.0,0.0842932]
[1743887551684,0.00018053,83076.0,83075.0,0.3154132]
[1743887551893,0.00018053,83076.0,83075.0,0.3729732]
[1743887553685,0.08447273,83076.0,83075.0,0.3910532]
[1743887554286,0.00018053,83076.0,83075.0,0.3910532]
[1743887554592,0.08447273,83076.0,83075.0,0.3910532]
[1743887555790,0.08447273,83076.0,83075.0,0.7518532]
[1743887555994,0.00018053,83076.0,83075.0,0.7518532]
[1743887557087,0.08447273,83076.0,83075.0,0.7518532]
[1743887557488,0.08447273,83076.0,83075.0,0.96715265]
[1743887558692,0.12767273,83076.0,83075.0,0.96711265]
[1743887559286,0.04338053,83076.0,83075.0,0.96711265]
[1743887560188,0.12767273,83076.0,83075.0,0.96711265]
[1743887561795,0.12767273,83076.0,83075.0,0.60631265]
[1743887561993,0.12767273,83076.0,83075.0,0.96711265]
[1743887564694,0.12767273,83076.0,83075.0,0.7518132]
[1743887565089,0.12767273,83076.0,83075.0,0.3910132]
[1743887565291,0.12767273,83076.0,83075.0,0.7518132]
[1743887570305,0.12767273,83076.0,83075.0,0.7952132]
[1743887570898,0.12767273,83076.0,83075.0,0.8383132]
[1743887573006,0.12767273,83076.0,83075.0,0.8202332]
[1743887573495,0.12767273,83076.0,83075.0,0.8383132]
[1743887586711,0.12767273,83076.0,83075.0,1.19678806]
[1743887587509,0.12767273,83076.0,83075.0,0.95039486]
[1743887587717,0.12767273,83076.0,83075.0,0.58959486]
[1743887587718,0.21357273,83076.0,83075.0,0.58959486]
[1743887588627,0.41357273,83076.0,83075.0,0.58959486]
[1743887590519,0.52142044,83076.0,83075.0,0.23112]
[1743887592320,0.0842932,83075.0,83074.0,8e-05]
[1743887592519,0.0842952,83073.0,83072.0,0.28837214]
[1743887593119,0.1274952,83073.0,83072.0,0.28837214]
[1743887593419,0.3717952,83073.0,83072.0,0.28837214]
[1743887594406,0.3717952,83073.0,83072.0,0.57837214]
[1743887594715,0.3717952,83073.0,83072.0,0.66266834]
[1743887594920,0.2443,83073.0,83072.0,0.7350962]
[1743887595110,0.24498,83073.0,83072.0,0.7357762]
[1743887595311,0.24498,83073.0,83072.0,0.8683762]
[1743887595312,0.3292752,83073.0,83072.0,0.8683762]
[1743887595809,0.1292752,83073.0,83072.0,0.8683762]
[1743887596005,0.1285952,83073.0,83072.0,0.8683762]
[1743887599326,0.00018053,83076.0,83075.0,0.0842932]
[1743887599507,0.00018053,83076.0,83075.0,0.4785332]
[1743887600216,0.12662193,83076.0,83075.0,0.4785332]
[1743887601926,0.084843,83083.0,83079.0,0.0842891]
[1743887601927,0.0421443,83080.0,83079.0,0.0842891]
[1743887602117,0.0421443,83080.0,83079.0,0.7715091]
[1743887602311,0.0842871,83081.0,83080.0,0.0842871]
[1743887602512,0.0842871,83081.0,83080.0,0.4106671]
[1743887602926,0.0421412,83086.0,83085.0,0.126422]
[1743887603127,0.0428212,83086.0,83085.0,0.377102]
[1743887604431,0.1271032,83086.0,83085.0,0.377102]
[1743887605331,0.0447,83087.0,83086.0,0.084282]
[1743887605632,0.08445953,83089.0,83088.0,0.08428]
[1743887605933,0.00086053,83089.0,83088.0,0.36496]
[1743887606132,0.08445953,83089.0,83088.0,0.45046]
[1743887606327,0.08513953,83089.0,83088.0,0.45046]
[1743887608531,0.12843953,83089.0,83088.0,0.45046]
[1743887609034,0.12843953,83089.0,83088.0,0.73845385]
[1743887609227,0.12775953,83089.0,83088.0,0.73845385]
[1743887609433,0.12775953,83089.0,83088.0,0.79577385]
[1743887612934,0.12775953,83089.0,83088.0,0.50778]
[1743887613140,0.12775953,83089.0,83088.0,0.52586]
[1743887616145,0.12775953,83089.0,83088.0,0.46854]
[1743887616343,0.12775953,83089.0,83088.0,0.52586]
[1743887620651,0.12775953,83089.0,83088.0,0.74141744]
[1743887620850,0.17245953,83089.0,83088.0,0.74141744]
[1743887621052,0.17313953,83089.0,83088.0,0.74141744]
[1743887621647,0.17313953,83089.0,83088.0,0.65713744]
[1743887621853,0.17313953,83089.0,83088.0,0.74141744]
[1743887622743,0.17313953,83089.0,83088.0,0.69811744]
[1743887622943,0.17313953,83089.0,83088.0,0.69807744]
[1743887623143,0.17313953,83089.0,83088.0,0.65587744]
[1743887625356,0.17313953,83089.0,83088.0,0.63779744]
[1743887625950,0.17313953,83089.0,83088.0,0.42224]
[1743887627253,0.17313953,83089.0,83088.0,0.78304]
[1743887627449,0.17245953,83089.0,83088.0,0.78304]
[1743887628549,0.17245953,83089.0,83088.0,0.42224]
[1743887628750,0.17321953,83089.0,83088.0,0.78304]
[1743887629051,0.17245953,83089.0,83088.0,0.78304]
[1743887631852,0.17245953,83089.0,83088.0,0.42224]
[1743887632052,0.17313953,83089.0,83088.0,0.78304]
[1743887632253,0.17245953,83089.0,83088.0,0.78304]
[1743887632854,0.17245953,83089.0,83088.0,0.42224]
[1743887633160,0.17313953,83089.0,83088.0,0.78304]
[1743887633361,0.17245953,83089.0,83088.0,0.82564]
[1743887633563,0.17245953,83089.0,83088.0,0.86444]
[1743887634857,0.17245953,83089.0,83088.0,0.50364]
[1743887635164,0.17245953,83089.0,83088.0,0.86444]
[1743887635165,0.17313953,83089.0,83088.0,0.86444]
[1743887635366,0.17245953,83089.0,83088.0,0.86444]
[1743887636267,0.17245953,83089.0,83088.0,0.50364]
[1743887636467,0.17313953,83089.0,83088.0,0.50364]
[1743887636655,0.17313953,83089.0,83088.0,0.86444]
[1743887636858,0.17245953,83089.0,83088.0,0.86444]
[1743887638965,0.17245953,83089.0,83088.0,0.50364]
[1743887639267,0.17313953,83089.0,83088.0,0.86444]
[1743887639470,0.17245953,83089.0,83088.0,0.86444]
[1743887640368,0.12775953,83089.0,83088.0,0.86444]
[1743887641369,0.0004,83092.0,83091.0,0.0842769]
[1743887641570,0.0004,83092.0,83091.0,0.3650369]
[1743887641871,0.0004,83092.0,83091.0,0.4879369]
[1743887645266,0.0004,83092.0,83091.0,0.4899369]
[1743887645466,0.0004,83092.0,83091.0,0.5471369]
[1743887646268,0.0004,83092.0,83091.0,0.5481369]
[1743887646567,0.0004,83092.0,83091.0,0.9633369]
[1743887648178,0.0004,83092.0,83091.0,1.31495732]
[1743887648374,0.70567831,83100.0,83099.0,0.0842688]
[1743887648675,0.70635831,83100.0,83099.0,0.6757488]
[1743887648877,0.70635831,83100.0,83099.0,0.7985488]
[1743887649967,0.79062611,83100.0,83099.0,0.7985488]
[1743887650375,0.70635831,83100.0,83099.0,0.8557488]
[1743887650575,0.70635831,83100.0,83099.0,0.8567488]
[1743887651071,0.30295609,83100.0,83099.0,0.8567488]
[1743887652076,0.30295609,83100.0,83099.0,0.8557488]
[1743887652277,0.30295609,83100.0,83099.0,1.2719488]
[1743887652478,0.02155061,83100.0,83099.0,1.4219488]
[1743887652668,0.02087061,83100.0,83099.0,1.5219488]
[1743887652864,0.01485183,83100.0,83099.0,1.2900288]
[1743887653069,0.01485183,83100.0,83099.0,1.2899888]
[1743887653372,0.00883305,83100.0,83099.0,1.4399888]
[1743887653781,0.00281532,83100.0,83099.0,1.4399888]
[1743887653981,0.0842522,83116.0,83115.0,0.0842516]
[1743887654178,0.00068,83116.0,83115.0,1.1236916]
[1743887654476,0.1236506,83117.0,83116.0,0.0842516]
[1743887654779,0.1243306,83117.0,83116.0,0.3449316]
[1743887654970,0.1236506,83117.0,83116.0,0.3449316]
[1743887655678,0.1236506,83117.0,83116.0,0.35414323]
[1743887658070,0.042122,83124.0,83116.0,0.35414323]
[1743887658071,0.042122,83124.0,83123.0,0.0842445]
[1743887658277,0.076442,83124.0,83123.0,0.7050445]
[1743887658480,0.076442,83124.0,83123.0,0.7057245]
[1743887658481,0.154542,83124.0,83123.0,0.7057245]
[1743887659375,0.154542,83124.0,83123.0,0.67864]
[1743887659879,0.154542,83124.0,83123.0,0.62148]
[1743887663882,0.154542,83124.0,83123.0,0.36148]
[1743887664391,0.354542,83124.0,83123.0,0.36148]
[1743887664589,0.354542,83124.0,83123.0,0.3608]
[1743887669109,0.0842445,83123.0,83122.0,8e-05]
[1743887669299,0.0849245,83123.0,83122.0,8e-05]
[1743887669501,0.1520245,83123.0,83122.0,8e-05]
[1743887670098,0.0842516,83116.0,83115.0,8e-05]
[1743887670308,0.0850116,83116.0,83115.0,0.00076]
[1743887670602,0.1905116,83116.0,83115.0,0.00068]
[1743887670997,0.3905116,83116.0,83115.0,0.00068]
[1743887672506,0.7513116,83116.0,83115.0,0.00068]
[1743887674206,0.7513116,83116.0,83115.0,0.00954507]
[1743887676602,0.7513116,83116.0,83115.0,0.00886507]
[1743887676803,0.0842536,83114.0,83113.0,8e-05]
[1743887677122,0.0848936,83114.0,83113.0,8e-05]
[1743887677303,0.1572936,83114.0,83113.0,8e-05]
[1743887677502,0.1572936,83114.0,83113.0,0.27008]
[1743887677711,0.1572936,83114.0,83113.0,0.27076]
[1743887678009,0.1572936,83114.0,83113.0,0.00076]
[1743887678201,0.1572936,83114.0,83113.0,8e-05]
[1743887678601,0.3572936,83114.0,83113.0,0.24076]
[1743887678806,0.3572936,83114.0,83113.0,0.00076]
[1743887679006,0.3572936,83114.0,83113.0,0.2693173]
[1743887679205,0.3572936,83114.0,83113.0,0.26076]
[1743887679815,0.3572936,83114.0,83113.0,0.00076]
[1743887680009,0.3572936,83114.0,83113.0,0.25076]
[1743887680207,0.20064,83114.0,83113.0,0.25997473]
[1743887680406,0.20064,83114.0,83113.0,0.52842933]
[1743887680615,0.2,83114.0,83113.0,0.56472933]
[1743887680921,0.10816614,83118.0,83117.0,0.0842506]
[1743887681109,0.19309574,83118.0,83117.0,0.6957306]
[1743887681702,0.19309574,83118.0,83117.0,0.78294815]
[1743887682009,0.19309574,83118.0,83117.0,0.69869755]
[1743887683209,0.0849296,83118.0,83117.0,0.69869755]
[1743887683409,0.0842496,83118.0,83117.0,0.69869755]
[1743887684404,0.0842496,83118.0,83117.0,0.78294815]
[1743887690317,0.0849296,83118.0,83117.0,0.78294815]
[1743887692616,0.0842496,83118.0,83117.0,0.69869755]
[1743887693220,0.1217296,83118.0,83117.0,0.26739755]
[1743887693518,0.1558296,83118.0,83117.0,0.01739755]
[1743887693723,0.3558296,83118.0,83117.0,0.01739755]
[1743887695409,0.0842536,83114.0,83113.0,0.00921473]
[1743887695715,0.0842536,83114.0,83113.0,0.00064]
[1743887695716,0.0850136,83114.0,83113.0,0.00064]
[1743887696014,0.1518136,83114.0,83113.0,0.00064]
[1743887696421,0.3518136,83114.0,83113.0,0.00064]
[1743887699219,0.77836,83114.0,83113.0,0.00903137]
[1743887699523,0.77836,83114.0,83106.0,0.10149771]
[1743887699524,0.0842607,83107.0,83106.0,0.10149771]
[1743887699729,0.44602071,83107.0,83106.0,0.10221771]
[1743887699923,0.55132071,83107.0,83106.0,0.10149771]
[1743887700426,0.75132071,83107.0,83106.0,0.10149771]
[1743887701430,0.75132071,83107.0,83106.0,0.00921371]
[1743887701625,0.0842688,83099.0,83098.0,0.00026053]
[1743887701829,0.08522881,83099.0,83098.0,0.00026053]
[1743887702326,0.15512881,83099.0,83098.0,0.00026053]
[1743887702727,0.15512881,83099.0,83098.0,0.00926753]
[1743887702926,0.15512881,83099.0,83098.0,0.00026053]
[1743887703328,0.35512881,83099.0,83098.0,0.00126053]
[1743887703630,0.084278,83090.0,83089.0,0.35854877]
[1743887703925,0.0842851,83083.0,83082.0,0.4311935]
[1743887704134,0.0842972,83071.0,83070.0,0.3608]
[1743887704329,0.0842972,83071.0,83070.0,0.4508]
[1743887705022,0.15335721,83071.0,83070.0,0.10007678]
[1743887705217,0.15335721,83071.0,83070.0,0.01007678]
[1743887705627,0.15335721,83071.0,83070.0,0.01407678]
[1743887705926,0.0421496,83070.0,83066.0,8e-05]
[1743887706130,0.0843054,83063.0,83062.0,0.00018053]
[1743887706527,0.08554541,83063.0,83062.0,0.00082053]
[1743887706828,0.44634541,83063.0,83062.0,0.00082053]
[1743887707026,0.48084541,83063.0,83062.0,0.00082053]
[1743887707233,0.51474541,83063.0,83062.0,0.00082053]
[1743887707626,0.51474541,83063.0,83062.0,3e-08]
[1743887707826,0.51474541,83063.0,83056.0,0.50010006]
[1743887707827,0.0843094,83059.0,83058.0,8e-05]
[1743887708028,0.0857494,83059.0,83058.0,0.01068734]
[1743887708332,0.0857494,83059.0,83058.0,0.00144]
[1743887708533,0.1558494,83059.0,83058.0,0.00144]
[1743887709739,0.3558494,83059.0,83058.0,0.00144]
[1743887710538,0.3568494,83059.0,83058.0,0.00144]
[1743887711139,0.3588494,83059.0,83058.0,0.00144]
[1743887711437,0.0843135,83055.0,83054.0,0.0704]
[1743887711628,0.0843135,83055.0,83054.0,0.09943371]
[1743887712438,0.2843135,83055.0,83054.0,0.09943371]
[1743887713734,0.2863135,83055.0,83054.0,0.09943371]
[1743887714038,0.2883135,83055.0,83054.0,0.09943371]
[1743887714940,0.2897535,83055.0,83054.0,0.09943371]
[1743887715338,0.3258535,83055.0,83054.0,0.09943371]
[1743887718839,0.3258535,83055.0,83054.0,0.13283371]
[1743887722225,0.3258535,83055.0,83054.0,0.21714821]
[1743887722226,0.2897535,83055.0,83054.0,0.21714821]
[1743887722838,0.0897535,83055.0,83054.0,0.21714821]
[1743887723839,0.0897535,83055.0,83054.0,0.23379703]
[1743887724040,0.0887535,83055.0,83054.0,0.23379703]
[1743887724540,0.0867535,83055.0,83054.0,0.23379703]
[1743887724839,0.0887535,83055.0,83054.0,0.21714821]
[1743887726841,0.0897535,83055.0,83054.0,0.21714821]
[1743887727542,0.0877535,83055.0,83054.0,0.21714821]
[1743887727743,0.0897535,83055.0,83054.0,0.21714821]
[1743887729341,0.0877535,83055.0,83054.0,0.21714821]
[1743887729642,0.0897535,83055.0,83054.0,0.21714821]
[1743887731134,0.0877535,83055.0,83054.0,0.21714821]
[1743887731335,0.0897535,83055.0,83054.0,0.21714821]
[1743887733046,0.0897535,83055.0,83054.0,0.23522821]
[1743887733246,0.0897535,83055.0,83054.0,0.23551898]
[1743887733639,0.0897535,83055.0,83054.0,0.25359898]
[1743887734550,0.1235535,83055.0,83054.0,0.16928448]
[1743887734742,0.1235535,83055.0,83054.0,0.15091371]
[1743887734941,0.1597535,83055.0,83054.0,0.15091371]
[1743887735146,0.1597535,83055.0,83054.0,0.16928448]
[1743887735643,0.1597535,83055.0,83054.0,0.15091371]
[1743887736347,0.1597535,83055.0,83054.0,0.11751371]
[1743887736746,0.1597535,83055.0,83054.0,0.13588448]
[1743887738438,0.1597535,83055.0,83054.0,0.11751371]
[1743887743656,0.1597535,83055.0,83054.0,0.02903371]
[1743887744242,0.3597535,83055.0,83054.0,0.02903371]
[1743887755452,0.3235535,83055.0,83054.0,0.09083371]
[1743887756148,0.1235535,83055.0,83054.0,0.09083371]
[1743887757356,0.1235535,83055.0,83054.0,0.17514821]
[1743887757557,0.1235535,83055.0,83054.0,0.09083371]
[1743887765653,0.0897535,83055.0,83054.0,0.09083371]
[1743887765865,0.00544,83055.0,83054.0,0.59298821]
[1743887766058,0.0883135,83055.0,83054.0,0.59298821]
[1743887766755,0.0883135,83055.0,83054.0,0.88167936]
[1743887767856,0.08776025,83055.0,83054.0,0.88167936]
[1743887769060,0.08920025,83055.0,83054.0,0.88167936]
[1743887770256,0.08920025,83055.0,83054.0,0.59298821]
[1743887770461,0.08776025,83055.0,83054.0,0.59298821]
[1743887770960,0.08776025,83055.0,83054.0,0.59294821]
[1743887773059,0.08776025,83055.0,83054.0,0.25022821]
[1743887773461,0.08776025,83055.0,83054.0,0.61102821]
[1743887775149,0.08776025,83055.0,83054.0,0.25022821]
[1743887775354,0.08920025,83055.0,83054.0,0.61102821]
[1743887775557,0.08776025,83055.0,83054.0,0.61102821]
[1743887776163,0.08776025,83055.0,83054.0,0.46971371]
[1743887776359,0.11956025,83055.0,83054.0,0.46971371]
[1743887776548,0.11956025,83055.0,83054.0,0.53594821]
[1743887776955,0.12104025,83055.0,83054.0,0.53594821]
[1743887777559,0.00492675,83055.0,83054.0,0.53594821]
[1743887777763,0.08776025,83055.0,83054.0,0.53594821]
[1743887777964,0.00344675,83055.0,83054.0,0.53594821]
[1743887780674,0.0843128,83056.0,83055.0,0.0843135]
[1743887780873,0.0843128,83056.0,83055.0,0.3343135]
[1743887781061,0.0843128,83056.0,83055.0,0.3979135]
[1743887781972,0.0843128,83056.0,83055.0,0.7587135]
[1743887782772,0.0843128,83056.0,83055.0,0.7597135]
[1743887783565,0.0843128,83056.0,83055.0,0.7607135]
[1743887784182,0.0843128,83056.0,83055.0,0.7597135]
[1743887784958,0.1164128,83056.0,83055.0,0.7597135]
[1743887786972,0.1164128,83056.0,83055.0,0.7587135]
[1743887790874,0.1164128,83056.0,83055.0,0.7597135]
[1743887792381,0.1164128,83056.0,83055.0,0.7587135]
[1743887793472,0.1164128,83056.0,83055.0,0.7767935]
[1743887800385,0.0321,83056.0,83055.0,0.7767935]
[1743887800777,0.03,83063.0,83055.0,0.7767935]
[1743887800778,0.10830036,83068.0,83055.0,1.0282498]
[1743887801089,0.10830036,83068.0,83067.0,0.4451013]
[1743887801269,0.10830036,83068.0,83067.0,0.7520613]
[1743887801470,0.14441192,83074.0,83073.0,0.0842952]
[1743887801679,0.22870672,83074.0,83073.0,0.3642952]
[1743887801881,0.22870672,83074.0,83073.0,0.3972952]
[1743887802182,0.0842888,83080.0,83078.0,0.0842901]
[1743887802388,0.08446963,83079.0,83078.0,0.3993901]
[1743887803684,0.15016963,83079.0,83078.0,0.3981901]
[1743887803885,0.15616963,83079.0,83078.0,0.3912101]
[1743887804088,0.15768963,83079.0,83078.0,0.30692]
[1743887804281,0.15768963,83079.0,83078.0,0.3912101]
[1743887804888,0.16368963,83079.0,83078.0,0.3912101]
[1743887806081,0.16216963,83079.0,83078.0,0.3912101]
[1743887806283,0.07788053,83079.0,83078.0,0.3912101]
[1743887806483,0.04538053,83079.0,83078.0,0.3912101]
[1743887806680,0.04538053,83079.0,83078.0,0.4854101]
[1743887806888,0.031,83088.0,83087.0,0.084281]
[1743887807195,0.11528,83088.0,83087.0,0.695081]
[1743887807397,0.11528,83088.0,83087.0,0.790981]
[1743887807701,0.11528,83088.0,83087.0,0.760381]
[1743887807995,0.12128,83088.0,83087.0,0.760381]
[1743887809089,0.12228,83088.0,83087.0,0.760381]
[1743887810002,0.15238,83088.0,83087.0,0.760381]
[1743887813097,0.15238,83088.0,83087.0,0.778461]
[1743887813297,0.15238,83088.0,83087.0,0.760381]
[1743887813498,0.15238,83088.0,83087.0,0.778461]
[1743887813693,0.15382,83088.0,83087.0,0.778461]
[1743887816295,0.00844,83088.0,83087.0,0.778461]
[1743887816500,0.0846759,83092.0,83091.0,0.0842769]
[1743887816802,0.0846759,83092.0,83091.0,0.3642769]
[1743887816993,0.1172759,83092.0,83091.0,0.3965769]
[1743887817800,0.1476759,83092.0,83091.0,0.4267769]
[1743887818904,0.1491559,83092.0,83091.0,0.4267769]
[1743887820807,0.1476759,83092.0,83091.0,0.4267769]
[1743887823397,0.1476759,83092.0,83091.0,0.4588769]
[1743887824306,0.1150759,83092.0,83091.0,0.4588769]
[1743887825005,0.1472759,83092.0,83091.0,0.4588769]
[1743887825795,0.1472759,83092.0,83091.0,0.4836569]
[1743887826192,0.1472759,83092.0,83091.0,0.28]
[1743887826498,0.2987159,83092.0,83091.0,0.28]
[1743887826702,0.1487159,83092.0,83091.0,0.28]
[1743887827709,0.3487159,83092.0,83091.0,0.28]
[1743887833111,0.1487159,83092.0,83091.0,0.28]
[1743887833798,0.1487159,83092.0,83091.0,0.2010744]
[1743887834114,0.084284,83084.0,83083.0,0.21550665]
[1743887834304,0.084284,83084.0,83083.0,0.22550665]
[1743887834504,0.177084,83084.0,83083.0,0.22550665]
[1743887836005,0.377084,83084.0,83083.0,0.22550665]
[1743887836709,0.377084,83084.0,83083.0,0.01]
[1743887836908,0.378564,83084.0,83083.0,0.01]
[1743887838121,0.0842891,83079.0,83078.0,0.16398985]